[Event "Chinese League Div-A Rapid 2022"]
[Site "Fuling,Chongqing"]
[Date "2022.09.18"]
[Round "10.2"]
[White "Li, Di"]
[Black "Ni, Hua"]
[Result "1/2-1/2"]
[ECO "A09"]
[WhiteElo "2575"]
[BlackElo "2668"]
[Annotator "ChessBase"]
[PlyCount "112"]
[EventDate "2022.09.07"]
[EventType "team-tourn"]
[EventCountry "CHN"]
[SourceTitle "playchess.com"]
[Source "ChessBase"]
[SourceQuality "1"]
[TimeControl "1500+10"]

1. Nf3 {[%emt 0:00:02]} d5 {[%emt 0:00:01]} 2. c4 {[%emt 0:00:05]} d4 {[%emt 0:00:18]} 3. b4 {[%emt 0:00:12]} c5 {[%emt 0:00:02]} 4. e3 {[%emt 0:00:08]} dxe3 {[%emt 0:00:30]} 5. fxe3 {[%emt 0:00:04]} cxb4 {[%emt 0:00:02]} 6. Bb2 {[%emt 0:00:26]} Nf6 {[%emt 0:00:24]} 7. d4 {[%emt 0:00:14]} Bf5 {[%emt 0:03:33]} 8. a3 {[%emt 0:01:10]} e6 {[%emt 0:00:17]} 9. c5 {[%emt 0:01:19]} bxa3 {[%emt 0:00:24]} 10. Bb5+ {[%emt 0:00:06]} Nc6 {[%emt 0:00:50]} 11. Rxa3 {[%emt 0:01:27]} Bxc5 {[%emt 0:01:15]} 12. dxc5 {[%emt 0:07:30]} Qxd1+ {[%emt 0:00:02]} 13. Kxd1 {[%emt 0:00:01]} Bxb1 {[%emt 0:00:02]} 14. Ke2 {[%emt 0:00:03]} Be4 {[%emt 0:02:24]} 15. Nd2 {[%emt 0:00:05]} Bg6 {[%emt 0:00:01]} 16. Rha1 {[%emt 0:01:43]} O-O {[%emt 0:01:04]} 17. Nc4 {[%emt 0:00:40]} Ne4 {[%emt 0:01:08]} 18. Bxc6 {[%emt 0:00:59]} bxc6 {[%emt 0:00:01]} 19. Be5 {[%emt 0:00:09]} f6 {[%emt 0:02:13]} 20. Bd6 {[%emt 0:00:11]} Rf7 {[%emt 0:03:40]} 21. Rb3 {[%emt 0:03:57]} Rd8 {[%emt 0:01:10]} 22. Ra6 {[%emt 0:00:16]} Nxd6 {[%emt 0:00:33]} 23. Nxd6 {[%emt 0:00:06]} Rc7 {[%emt 0:00:01]} 24. Rba3 {[%emt 0:01:00]} Ra8 {[%emt 0:00:12]} 25. e4 {[%emt 0:00:42]} h5 {[%emt 0:00:17]} 26. h4 {[%emt 0:00:00]} e5 {[%emt 0:00:16]} 27. Rb3 {[%emt 0:00:22]} Rf8 {[%emt 0:00:39]} 28. Rba3 {[%emt 0:00:07]} Ra8 {[%emt 0:01:12]} 29. Rb3 {[%emt 0:00:08]} Kh7 {[%emt 0:00:44]} 30. Ke3 {[%emt 0:01:14]} Kh6 {[%emt 0:00:01]} 31. Rb2 {[%emt 0:00:21]} Bh7 {[%emt 0:01:08]} 32. g3 {[%emt 0:01:42]} g5 {[%emt 0:00:51]} 33. hxg5+ {[%emt 0:01:27]} Kxg5 {[%emt 0:00:13]} 34. Kf3 {[%emt 0:00:32]} Bg6 {[%emt 0:00:06]} 35. Rb4 {[%emt 0:01:00]} Rh8 {[%emt 0:00:08]} 36. Ra1 {[%emt 0:00:12]} Ra8 {[%emt 0:01:51]} 37. Ra6 {[%emt 0:00:15]} f5 {[%emt 0:00:20]} 38. exf5 {[%emt 0:00:24]} Bxf5 {[%emt 0:00:02]} 39. Nxf5 {[%emt 0:00:49]} Kxf5 {[%emt 0:00:03]} 40. Rh4 {[%emt 0:00:01]} Kg5 {[%emt 0:00:04]} 41. Ke4 {[%emt 0:00:06]} Rd8 {[%emt 0:00:07]} 42. Rh1 {[%emt 0:00:16]} Rd2 {[%emt 0:00:55]} 43. Rf1 {[%emt 0:00:37]} Re2+ {[%emt 0:00:35]} 44. Kd3 {[%emt 0:00:04]} Rg2 {[%emt 0:00:04]} 45. Ke4 {[%emt 0:00:06]} Rxg3 {[%emt 0:00:20]} 46. Kxe5 {[%emt 0:00:02]} Rd3 {[%emt 0:00:31]} 47. Rg1+ {[%emt 0:00:01]} Kh6 {[%emt 0:00:01]} 48. Kf6 {[%emt 0:00:33]} Rf3+ {[%emt 0:00:15]} 49. Ke6 {[%emt 0:00:09]} Rff7 {[%emt 0:00:54]} 50. Ra2 {[%emt 0:00:15]} Rg7 {[%emt 0:00:14]} 51. Kd6 {[%emt 0:00:11]} Rgd7+ {[%emt 0:00:39]} 52. Ke6 {[%emt 0:00:02]} h4 {[%emt 0:00:16]} 53. Ra4 {[%emt 0:00:12]} Re7+ {[%emt 0:00:34]} 54. Kd6 {[%emt 0:00:04]} Red7+ {[%emt 0:00:17]} 55. Ke6 {[%emt 0:00:01]} Re7+ {[%emt 0:00:18]} 56. Kd6 {[%emt 0:00:01]} Red7+ {[%emt 0:00:09]} 1/2-1/2

[Event "Chinese League Div-A Rapid 2022"]
[Site "Fuling,Chongqing"]
[Date "2022.09.18"]
[Round "10.3"]
[White "Zhao, Yuanhe"]
[Black "Lou, Yiping"]
[Result "0-1"]
[ECO "A09"]
[WhiteElo "2440"]
[BlackElo "2485"]
[Annotator "ChessBase"]
[PlyCount "98"]
[EventDate "2022.09.07"]
[EventType "team-tourn"]
[EventCountry "CHN"]
[SourceTitle "playchess.com"]
[Source "ChessBase"]
[SourceQuality "1"]
[TimeControl "1500+10"]

1. Nf3 {[%emt 0:00:04]} d5 {[%emt 0:00:02]} 2. c4 {[%emt 0:00:05]} dxc4 {[%emt 0:00:28]} 3. Na3 {[%emt 0:00:44]} c5 {[%emt 0:01:47]} 4. Nxc4 {[%emt 0:00:32]} Nc6 {[%emt 0:00:08]} 5. g3 {[%emt 0:00:21]} f6 {[%emt 0:00:58]} 6. Bg2 {[%emt 0:00:12]} e5 {[%emt 0:00:03]} 7. d3 {[%emt 0:00:09]} Be6 {[%emt 0:00:50]} 8. Nfd2 {[%emt 0:01:53]} Nge7 {[%emt 0:00:53]} 9. O-O {[%emt 0:00:07]} Nd5 {[%emt 0:02:19]} 10. Ne4 {[%emt 0:01:44]} Be7 {[%emt 0:00:00]} 11. f4 {[%emt 0:00:24]} exf4 {[%emt 0:00:07]} 12. gxf4 {[%emt 0:00:02]} O-O {[%emt 0:00:24]} 13. f5 {[%emt 0:00:22]} Bf7 {[%emt 0:00:02]} 14. a4 {[%emt 0:00:02]} Nb6 {[%emt 0:01:49]} 15. Nxb6 {[%emt 0:01:31]} axb6 {[%emt 0:00:18]} 16. Be3 {[%emt 0:00:37]} Nd4 {[%emt 0:00:21]} 17. Ra3 {[%emt 0:02:07]} Qd7 {[%emt 0:01:11]} 18. Ng3 {[%emt 0:00:02]} Rfe8 {[%emt 0:00:25]} 19. Be4 {[%emt 0:00:41]} Bd6 {[%emt 0:01:51]} 20. Bf4 {[%emt 0:01:09]} Bf8 {[%emt 0:01:27]} 21. e3 {[%emt 0:01:44]} Nc6 {[%emt 0:00:03]} 22. Rc3 {[%emt 0:00:48]} Nb4 {[%emt 0:00:47]} 23. Qg4 {[%emt 0:02:04]} Rxa4 {[%emt 0:00:56]} 24. h4 {[%emt 0:01:19]} Kh8 {[%emt 0:00:38]} 25. Kh2 {[%emt 0:00:34]} Nd5 {[%emt 0:01:15]} 26. Bxd5 {[%emt 0:00:10]} Qxd5 {[%emt 0:00:10]} 27. e4 {[%emt 0:00:29]} Qd4 {[%emt 0:01:06]} 28. Ne2 {[%emt 0:00:31]} Qb4 {[%emt 0:00:15]} 29. Rf2 {[%emt 0:01:17]} c4 {[%emt 0:00:37]} 30. dxc4 {[%emt 0:02:30]} Rxe4 {[%emt 0:00:28]} 31. Qf3 {[%emt 0:00:08]} Qe7 {[%emt 0:00:33]} 32. b3 {[%emt 0:00:18]} Ra1 {[%emt 0:01:05]} 33. Rd3 {[%emt 0:00:20]} Be8 {[%emt 0:02:52]} 34. Nc3 {[%emt 0:02:58]} Ree1 {[%emt 0:00:28]} 35. Re3 {[%emt 0:01:52]} Rxe3 {[%emt 0:00:20]} 36. Qxe3 {[%emt 0:00:03]} Bc6 {[%emt 0:00:58]} 37. Nd5 {[%emt 0:00:02]} Qxe3 {[%emt 0:00:08]} 38. Bxe3 {[%emt 0:00:01]} b5 {[%emt 0:00:08]} 39. Rd2 {[%emt 0:00:15]} bxc4 {[%emt 0:00:09]} 40. bxc4 {[%emt 0:00:03]} Kg8 {[%emt 0:00:18]} 41. h5 {[%emt 0:00:08]} Kf7 {[%emt 0:00:06]} 42. Nf4 {[%emt 0:00:47]} Bb4 {[%emt 0:00:42]} 43. Rd8 {[%emt 0:00:34]} Re1 {[%emt 0:00:29]} 44. Bb6 {[%emt 0:00:32]} Re5 {[%emt 0:00:34]} 45. h6 {[%emt 0:00:11]} gxh6 {[%emt 0:00:11]} 46. Nd5 {[%emt 0:00:07]} Bf8 {[%emt 0:00:09]} 47. Bd4 {[%emt 0:00:14]} Rxf5 {[%emt 0:00:09]} 48. Rc8 {[%emt 0:00:11]} Bd6+ {[%emt 0:00:06]} 49. Kh3 {[%emt 0:00:07]} Rxd5 {[%emt 0:00:14]} 0-1

[Event "Chinese League Div-A Rapid 2022"]
[Site "Fuling,Chongqing"]
[Date "2022.09.18"]
[Round "10.4"]
[White "Ju, Wenjun"]
[Black "Ren, Xiaoyi"]
[Result "1/2-1/2"]
[ECO "D78"]
[WhiteElo "2560"]
[BlackElo "2250"]
[Annotator "ChessBase"]
[PlyCount "64"]
[EventDate "2022.09.07"]
[EventType "team-tourn"]
[EventCountry "CHN"]
[SourceTitle "playchess.com"]
[Source "ChessBase"]
[SourceQuality "1"]
[TimeControl "1500+10"]

1. c4 {[%emt 0:00:02]} Nf6 {[%emt 0:00:04]} 2. Nf3 {[%emt 0:00:14]} g6 {[%emt 0:00:07]} 3. g3 {[%emt 0:00:17]} Bg7 {[%emt 0:00:07]} 4. Bg2 {[%emt 0:00:03]} O-O {[%emt 0:00:34]} 5. O-O {[%emt 0:00:04]} c6 {[%emt 0:00:05]} 6. b3 {[%emt 0:00:02]} Ne4 {[%emt 0:00:32]} 7. d4 {[%emt 0:00:03]} d5 {[%emt 0:00:02]} 8. Bb2 {[%emt 0:00:11]} Nd7 {[%emt 0:01:23]} 9. Nc3 {[%emt 0:00:20]} Ndf6 {[%emt 0:00:17]} 10. Ne5 {[%emt 0:00:36]} Bf5 {[%emt 0:01:21]} 11. Rc1 {[%emt 0:00:36]} Bh6 {[%emt 0:00:27]} 12. e3 {[%emt 0:00:05]} Rc8 {[%emt 0:00:11]} 13. Qe2 {[%emt 0:01:06]} Nxc3 {[%emt 0:01:56]} 14. Bxc3 {[%emt 0:00:03]} Ne4 {[%emt 0:00:05]} 15. Bb4 {[%emt 0:01:06]} a5 {[%emt 0:01:26]} 16. Ba3 {[%emt 0:00:02]} f6 {[%emt 0:01:22]} 17. Nd3 {[%emt 0:00:12]} b5 {[%emt 0:00:14]} 18. cxb5 {[%emt 0:06:27]} cxb5 {[%emt 0:00:05]} 19. Rxc8 {[%emt 0:00:15]} Bxc8 {[%emt 0:00:03]} 20. Nc5 {[%emt 0:00:02]} b4 {[%emt 0:04:09]} 21. Nxe4 {[%emt 0:00:02]} dxe4 {[%emt 0:00:40]} 22. Bb2 {[%emt 0:00:01]} Bb7 {[%emt 0:00:11]} 23. Rc1 {[%emt 0:00:16]} Qb6 {[%emt 0:04:55]} 24. Rc5 {[%emt 0:01:46]} Ba6 {[%emt 0:00:20]} 25. Qd1 {[%emt 0:04:52]} Rd8 {[%emt 0:02:09]} 26. Qc1 {[%emt 0:01:06]} Bd3 {[%emt 0:00:55]} 27. Rc7 {[%emt 0:00:36]} Bf8 {[%emt 0:00:25]} 28. Bf1 {[%emt 0:04:25]} Qa6 {[%emt 0:01:51]} 29. Rc6 {[%emt 0:01:23]} Qb5 {[%emt 0:00:03]} 30. Rc5 {[%emt 0:00:27]} Qa6 {[%emt 0:00:04]} 31. Rc6 {[%emt 0:02:39]} Qb5 {[%emt 0:00:04]} 32. Rc5 {[%emt 0:00:38]} Qa6 {[%emt 0:00:03]} 1/2-1/2

[Event "Chinese League Div-A Rapid 2022"]
[Site "Fuling,Chongqing"]
[Date "2022.09.18"]
[Round "10.5"]
[White "Ning, Kaiyu"]
[Black "Chu, Ruotong"]
[Result "0-1"]
[ECO "D27"]
[WhiteElo "2374"]
[BlackElo "2185"]
[Annotator "ChessBase"]
[PlyCount "94"]
[EventDate "2022.09.07"]
[EventType "team-tourn"]
[EventCountry "CHN"]
[SourceTitle "playchess.com"]
[Source "ChessBase"]
[SourceQuality "1"]
[TimeControl "1500+10"]

1. d4 {[%emt 0:00:02]} d5 {[%emt 0:00:01]} 2. c4 {[%emt 0:00:06]} dxc4 {[%emt 0:00:02]} 3. Nf3 {[%emt 0:00:02]} Nf6 {[%emt 0:00:01]} 4. e3 {[%emt 0:00:01]} e6 {[%emt 0:00:01]} 5. Bxc4 {[%emt 0:00:02]} a6 {[%emt 0:00:02]} 6. O-O {[%emt 0:00:03]} c5 {[%emt 0:00:01]} 7. b3 {[%emt 0:00:01]} Nc6 {[%emt 0:00:54]} 8. Bb2 {[%emt 0:00:02]} cxd4 {[%emt 0:00:34]} 9. Nxd4 {[%emt 0:00:02]} Nxd4 {[%emt 0:00:22]} 10. Bxd4 {[%emt 0:00:15]} Be7 {[%emt 0:01:36]} 11. Nd2 {[%emt 0:00:10]} O-O {[%emt 0:00:06]} 12. Be2 {[%emt 0:00:10]} Nd5 {[%emt 0:01:31]} 13. Ne4 {[%emt 0:02:57]} Bd7 {[%emt 0:03:01]} 14. Bd3 {[%emt 0:00:01]} Nf6 {[%emt 0:03:20]} 15. Nxf6+ {[%emt 0:02:30]} Bxf6 {[%emt 0:00:04]} 16. Bxf6 {[%emt 0:00:02]} Qxf6 {[%emt 0:03:01]} 17. Bxh7+ {[%emt 0:00:10]} Kxh7 {[%emt 0:00:02]} 18. Qxd7 {[%emt 0:00:02]} b5 {[%emt 0:00:03]} 19. a4 {[%emt 0:00:40]} b4 {[%emt 0:02:00]} 20. Rac1 {[%emt 0:04:06]} a5 {[%emt 0:02:46]} 21. Rc4 {[%emt 0:03:14]} Rad8 {[%emt 0:00:12]} 22. Qc7 {[%emt 0:01:25]} Rd5 {[%emt 0:00:37]} 23. e4 {[%emt 0:00:29]} Rg5 {[%emt 0:01:16]} 24. f4 {[%emt 0:04:44]} Rh5 {[%emt 0:00:02]} 25. g3 {[%emt 0:02:22]} Qb2 {[%emt 0:00:27]} 26. Rf2 {[%emt 0:00:25]} Qxb3 {[%emt 0:00:40]} 27. Kg2 {[%emt 0:01:59]} Qxa4 {[%emt 0:00:36]} 28. e5 {[%emt 0:00:00]} Qb3 {[%emt 0:01:55]} 29. Rd4 {[%emt 0:00:54]} Qe3 {[%emt 0:01:31]} 30. Rfd2 {[%emt 0:00:53]} g5 {[%emt 0:01:30]} 31. Qe7 {[%emt 0:01:00]} Kg7 {[%emt 0:01:34]} 32. Qf6+ {[%emt 0:00:23]} Kh7 {[%emt 0:00:12]} 33. f5 {[%emt 0:00:40]} g4 {[%emt 0:00:11]} 34. fxe6 {[%emt 0:00:24]} Qf3+ {[%emt 0:00:01]} 35. Qxf3 {[%emt 0:00:28]} gxf3+ {[%emt 0:00:01]} 36. Kxf3 {[%emt 0:00:09]} fxe6+ {[%emt 0:00:27]} 37. Ke4 {[%emt 0:00:12]} Rff5 {[%emt 0:00:01]} 38. g4 {[%emt 0:00:00]} Rxe5+ {[%emt 0:00:25]} 39. Kf4 {[%emt 0:00:01]} Rd5 {[%emt 0:00:03]} 40. Rxd5 {[%emt 0:00:31]} Rxd5 {[%emt 0:00:01]} 41. Re2 {[%emt 0:00:04]} e5+ {[%emt 0:00:09]} 42. Ke4 {[%emt 0:00:03]} Rb5 {[%emt 0:00:02]} 43. Kd3 {[%emt 0:00:10]} b3 {[%emt 0:00:10]} 44. Kc3 {[%emt 0:00:12]} b2 {[%emt 0:00:06]} 45. Rxb2 {[%emt 0:00:14]} Rxb2 {[%emt 0:00:01]} 46. Kxb2 {[%emt 0:00:01]} e4 {[%emt 0:00:01]} 47. Kc3 {[%emt 0:00:15]} a4 {[%emt 0:00:01]} 0-1

[Event "Chinese League Div-A Rapid 2022"]
[Site "Fuling,Chongqing"]
[Date "2022.09.18"]
[Round "10.6"]
[White "Zhao, Jun"]
[Black "Ding, Liren"]
[Result "1/2-1/2"]
[ECO "C88"]
[WhiteElo "2619"]
[BlackElo "2808"]
[Annotator "ChessBase"]
[PlyCount "89"]
[EventDate "2022.09.07"]
[EventType "team-tourn"]
[EventCountry "CHN"]
[SourceTitle "playchess.com"]
[Source "ChessBase"]
[SourceQuality "1"]
[TimeControl "1500+10"]

1. e4 {[%emt 0:00:03]} e5 {[%emt 0:00:02]} 2. Nf3 {[%emt 0:00:02]} Nc6 {[%emt 0:00:13]} 3. Bb5 {[%emt 0:00:06]} a6 {[%emt 0:00:01]} 4. Ba4 {[%emt 0:00:03]} Nf6 {[%emt 0:00:02]} 5. O-O {[%emt 0:00:06]} Be7 {[%emt 0:00:01]} 6. Re1 {[%emt 0:00:12]} b5 {[%emt 0:00:02]} 7. Bb3 {[%emt 0:00:01]} O-O {[%emt 0:00:01]} 8. a4 {[%emt 0:00:02]} Bb7 {[%emt 0:00:02]} 9. d3 {[%emt 0:00:16]} d6 {[%emt 0:00:04]} 10. Nbd2 {[%emt 0:00:11]} Na5 {[%emt 0:00:51]} 11. Ba2 {[%emt 0:00:03]} c5 {[%emt 0:00:02]} 12. c3 {[%emt 0:01:53]} h6 {[%emt 0:01:28]} 13. h3 {[%emt 0:00:13]} Re8 {[%emt 0:00:03]} 14. Nf1 {[%emt 0:01:16]} c4 {[%emt 0:00:14]} 15. b4 {[%emt 0:02:20]} cxb3 {[%emt 0:00:36]} 16. Bxb3 {[%emt 0:00:02]} Nxb3 {[%emt 0:00:22]} 17. Qxb3 {[%emt 0:00:01]} Qd7 {[%emt 0:00:05]} 18. axb5 {[%emt 0:00:32]} axb5 {[%emt 0:00:12]} 19. Ba3 {[%emt 0:01:59]} Bd8 {[%emt 0:00:45]} 20. Ng3 {[%emt 0:02:22]} d5 {[%emt 0:02:37]} 21. Rab1 {[%emt 0:01:10]} dxe4 {[%emt 0:05:22]} 22. dxe4 {[%emt 0:00:02]} Bc6 {[%emt 0:00:06]} 23. Bb4 {[%emt 0:04:16]} Bb6 {[%emt 0:03:18]} 24. Rb2 {[%emt 0:02:46]} Qb7 {[%emt 0:04:55]} 25. Rbe2 {[%emt 0:00:27]} Rad8 {[%emt 0:00:13]} 26. Nh4 {[%emt 0:01:34]} Rd3 {[%emt 0:00:29]} 27. Nhf5 {[%emt 0:00:14]} Re6 {[%emt 0:00:15]} 28. Qc2 {[%emt 0:00:33]} Rd7 {[%emt 0:00:47]} 29. Kh2 {[%emt 0:01:41]} Kh7 {[%emt 0:00:35]} 30. Qc1 {[%emt 0:00:27]} Ng8 {[%emt 0:00:14]} 31. Rd1 {[%emt 0:01:19]} Rxd1 {[%emt 0:01:18]} 32. Qxd1 {[%emt 0:00:01]} Nf6 {[%emt 0:00:07]} 33. Nd6 {[%emt 0:00:43]} Qc7 {[%emt 0:00:38]} 34. Qd3 {[%emt 0:00:02]} Qd7 {[%emt 0:00:12]} 35. Rd2 {[%emt 0:00:32]} Ne8 {[%emt 0:00:06]} 36. Ngf5 {[%emt 0:01:21]} g6 {[%emt 0:00:47]} 37. Qg3 {[%emt 0:00:02]} Nxd6 {[%emt 0:00:56]} 38. Nxd6 {[%emt 0:01:22]} Bc7 {[%emt 0:00:26]} 39. Nc4 {[%emt 0:00:04]} Qe8 {[%emt 0:00:04]} 40. Nd6 {[%emt 0:00:05]} Bxd6 {[%emt 0:01:34]} 41. Rxd6 {[%emt 0:00:02]} Bxe4 {[%emt 0:00:05]} 42. Qh4 {[%emt 0:00:28]} Rxd6 {[%emt 0:01:04]} 43. Bxd6 {[%emt 0:00:01]} Bd5 {[%emt 0:00:10]} 44. Qf6 {[%emt 0:00:27]} Qe6 {[%emt 0:00:02]} 45. Qxe6 {[%emt 0:00:07]} 1/2-1/2

[Event "Chinese League Div-A Rapid 2022"]
[Site "Fuling,Chongqing"]
[Date "2022.09.18"]
[Round "10.7"]
[White "Huang, Renjie"]
[Black "Chen, Yuan"]
[Result "1-0"]
[ECO "B43"]
[WhiteElo "2446"]
[BlackElo "2138"]
[Annotator "ChessBase"]
[PlyCount "61"]
[EventDate "2022.09.07"]
[EventType "team-tourn"]
[EventCountry "CHN"]
[SourceTitle "playchess.com"]
[Source "ChessBase"]
[SourceQuality "1"]
[TimeControl "1500+10"]

1. e4 {[%emt 0:00:01]} c5 {[%emt 0:00:02]} 2. Nf3 {[%emt 0:00:01]} e6 {[%emt 0:00:15]} 3. d4 {[%emt 0:00:00]} cxd4 {[%emt 0:00:01]} 4. Nxd4 {[%emt 0:00:01]} a6 {[%emt 0:00:02]} 5. Nc3 {[%emt 0:00:02]} Qc7 {[%emt 0:00:55]} 6. Be2 {[%emt 0:00:01]} Nf6 {[%emt 0:01:47]} 7. Qd3 {[%emt 0:00:03]} d6 {[%emt 0:02:02]} 8. Qg3 {[%emt 0:00:04]} b5 {[%emt 0:00:41]} 9. b4 {[%emt 0:00:02]} e5 {[%emt 0:04:39]} 10. Nb3 {[%emt 0:02:14]} d5 {[%emt 0:01:07]} 11. O-O {[%emt 0:00:18]} dxe4 {[%emt 0:01:24]} 12. Bxb5+ {[%emt 0:01:26]} Bd7 {[%emt 0:01:52]} 13. Bxd7+ {[%emt 0:00:46]} Nbxd7 {[%emt 0:00:02]} 14. Bb2 {[%emt 0:01:59]} Bxb4 {[%emt 0:01:14]} 15. Qxg7 {[%emt 0:01:44]} O-O-O {[%emt 0:00:48]} 16. Ne2 {[%emt 0:01:01]} Rhg8 {[%emt 0:01:36]} 17. Qxf7 {[%emt 0:01:05]} Qc6 {[%emt 0:00:36]} 18. Nbc1 {[%emt 0:00:30]} e3 {[%emt 0:01:09]} 19. f3 {[%emt 0:00:01]} Qxc2 {[%emt 0:00:32]} 20. Qb3 {[%emt 0:03:27]} Qxb3 {[%emt 0:03:43]} 21. Nxb3 {[%emt 0:00:07]} Nd5 {[%emt 0:00:28]} 22. a3 {[%emt 0:01:12]} Bd2 {[%emt 0:00:32]} 23. Rfd1 {[%emt 0:00:45]} N7b6 {[%emt 0:01:13]} 24. Bxe5 {[%emt 0:01:25]} Nc4 {[%emt 0:00:03]} 25. Bg3 {[%emt 0:00:22]} Nc3 {[%emt 0:01:44]} 26. Nxc3 {[%emt 0:00:02]} Bxc3 {[%emt 0:00:01]} 27. Rxd8+ {[%emt 0:00:01]} Kxd8 {[%emt 0:00:29]} 28. Bh4+ {[%emt 0:01:33]} Kd7 {[%emt 0:00:21]} 29. Rc1 {[%emt 0:00:02]} Rb8 {[%emt 0:00:30]} 30. Rxc3 {[%emt 0:00:10]} Na5 {[%emt 0:00:11]} 31. Nc5+ {[%emt 0:00:07]} 1-0

[Event "Chinese League Div-A Rapid 2022"]
[Site "Fuling,Chongqing"]
[Date "2022.09.18"]
[Round "10.8"]
[White "Liu, Qingnan"]
[Black "Lu, Shanglei"]
[Result "1/2-1/2"]
[ECO "E04"]
[WhiteElo "2542"]
[BlackElo "2616"]
[Annotator "ChessBase"]
[PlyCount "55"]
[EventDate "2022.09.07"]
[EventType "team-tourn"]
[EventCountry "CHN"]
[SourceTitle "playchess.com"]
[Source "ChessBase"]
[SourceQuality "1"]
[TimeControl "1500+10"]

1. Nf3 {[%emt 0:00:02]} Nf6 {[%emt 0:00:22]} 2. d4 {[%emt 0:00:01]} d5 {[%emt 0:00:05]} 3. c4 {[%emt 0:00:02]} e6 {[%emt 0:00:02]} 4. g3 {[%emt 0:00:01]} dxc4 {[%emt 0:00:02]} 5. Bg2 {[%emt 0:00:08]} c5 {[%emt 0:00:02]} 6. O-O {[%emt 0:00:06]} Nc6 {[%emt 0:00:02]} 7. dxc5 {[%emt 0:00:10]} Qxd1 {[%emt 0:00:02]} 8. Rxd1 {[%emt 0:00:03]} Bxc5 {[%emt 0:00:04]} 9. Nbd2 {[%emt 0:00:07]} c3 {[%emt 0:00:02]} 10. bxc3 {[%emt 0:00:07]} O-O {[%emt 0:00:04]} 11. Nb3 {[%emt 0:00:10]} Be7 {[%emt 0:00:02]} 12. Nfd4 {[%emt 0:00:22]} Bd7 {[%emt 0:04:26]} 13. Nb5 {[%emt 0:01:57]} Rfd8 {[%emt 0:05:29]} 14. Be3 {[%emt 0:03:15]} a6 {[%emt 0:03:06]} 15. Nd6 {[%emt 0:01:17]} Bxd6 {[%emt 0:00:14]} 16. Rxd6 {[%emt 0:00:03]} Be8 {[%emt 0:00:02]} 17. Rxd8 {[%emt 0:00:32]} Nxd8 {[%emt 0:00:01]} 18. Na5 {[%emt 0:00:14]} Nd5 {[%emt 0:00:24]} 19. Bd2 {[%emt 0:04:17]} b5 {[%emt 0:00:37]} 20. c4 {[%emt 0:00:27]} bxc4 {[%emt 0:00:20]} 21. Nxc4 {[%emt 0:00:02]} Rc8 {[%emt 0:01:28]} 22. Nd6 {[%emt 0:02:02]} Rc2 {[%emt 0:00:02]} 23. Bg5 {[%emt 0:01:49]} f6 {[%emt 0:00:01]} 24. Rc1 {[%emt 0:00:02]} Rxc1+ {[%emt 0:03:27]} 25. Bxc1 {[%emt 0:00:01]} Bc6 {[%emt 0:00:01]} 26. Bd2 {[%emt 0:00:07]} Nb7 {[%emt 0:01:07]} 27. Nxb7 {[%emt 0:03:01]} Bxb7 {[%emt 0:00:01]} 28. f4 {[%emt 0:00:06]} 1/2-1/2